bitfinex/quotes_ETHUSD_20240822
["timestamp","ask_amount","ask_price","bid_price","bid_amount"]
[1724294842216,0.05116335,2617.2,2616.9,2.29277]
[1724294842415,2.4765,2617.7,2616.9,2.29272]
[1724294842642,2.4765,2617.7,2617.3,2.29242]
[1724294842643,0.05134425,2617.6,2617.3,2.29242]
[1724294842814,0.05134425,2617.6,2617.1,2.29258]
[1724294843942,0.05134425,2617.6,2616.9,2.29275]
[1724294844099,2.34357425,2617.6,2617.0,2.2927]
[1724294844302,1.04161538,2617.6,2617.0,2.2927]
[1724294844549,1.04161538,2617.6,2617.1,2.29255]
[1724294845193,0.05134425,2617.6,2617.1,2.29255]
[1724294845392,3.93,2617.8,2617.1,2.29255]
[1724294845617,3.93,2617.8,2617.3,2.29242]
[1724294845933,0.0512227,2617.7,2617.1,2.29254]
[1724294846061,0.0512227,2617.7,2617.2,2.29247]
[1724294846062,0.8592227,2617.7,2617.2,2.29247]
[1724294846861,0.8592227,2617.7,2617.3,2.29242]
[1724294847091,0.51878558,2617.6,2617.3,2.29242]
[1724294847291,0.5705984,2617.6,2617.3,2.29242]
[1724294847972,0.5705984,2617.6,2617.1,4.58508]
[1724294848173,0.5705984,2617.6,2617.1,2.29254]
[1724294849503,2.29226,2617.5,2616.9,2.29273]
[1724294849692,2.57868584,2617.4,2616.8,7.41252039]
[1724294849892,0.28628584,2617.4,2616.8,7.41252039]
[1724294850064,0.05158034,2617.3,2616.8,7.41252039]
[1724294850473,0.05158034,2617.3,2616.9,2.29277]
[1724294850675,0.05158034,2617.3,2616.8,7.41252039]
[1724294850881,0.05158034,2617.3,2617.1,2.29253]
[1724294851111,0.05158034,2617.3,2617.2,2.29252]
[1724294851417,0.05158034,2617.3,2617.0,2.29262]
[1724294851562,0.05157077,2617.2,2617.1,2.29255]
[1724294852009,0.51878558,2617.6,2617.2,2.29248]
[1724294852227,4.32863307,2617.8,2617.3,2.29243]
[1724294852511,3.93,2617.8,2617.3,2.29243]
[1724294852887,3.93,2617.8,2617.5,2.29225]
[1724294853321,0.39835463,2618.0,2617.5,2.2922]
[1724294853477,0.28959546,2617.9,2617.5,4.5844]
[1724294854203,0.28959546,2617.9,2617.5,2.2922]
[1724294854527,0.28959546,2617.9,2617.6,2.29217]
[1724294856217,0.28959546,2617.9,2617.4,4.5846]
[1724294856576,0.28959546,2617.9,2617.5,2.29223]
[1724294856809,0.28959546,2617.9,2617.6,2.29217]
[1724294857584,0.05196917,2617.8,2617.7,2.29208]
[1724294858420,2.29181,2618.1,2617.5,2.29224]
[1724294858575,0.05212495,2617.8,2617.3,2.29236]
[1724294858894,2.29223,2617.6,2617.2,7.41252039]
[1724294859075,4.58449,2617.6,2617.2,7.41252039]
[1724294859270,0.05229003,2617.5,2617.2,7.41252039]
[1724294859482,0.51596603,2617.5,2617.2,7.41252039]
[1724294859946,2.29236,2617.4,2617.2,7.41252039]
[1724294860087,2.29243,2617.3,2617.2,7.41252039]
[1724294860289,0.05205364,2617.3,2617.2,7.41252039]
[1724294861583,0.05154321,2617.3,2617.2,7.41252039]
[1724294861791,4.58446,2617.6,2617.2,7.41252039]
[1724294861982,0.458445,2617.5,2617.2,7.41252039]
[1724294862183,0.51011771,2617.5,2617.2,7.41252039]
[1724294863132,0.05167271,2617.5,2617.4,2.29235]
[1724294863389,2.29182,2618.0,2617.4,2.29235]
[1724294863680,0.35562911,2617.9,2617.5,2.29222]
[1724294863884,0.05206693,2617.9,2617.2,14.28296039]
[1724294864024,0.05206693,2617.9,2617.4,2.29232]
[1724294864223,0.05206693,2617.9,2617.5,2.29221]
[1724294864663,0.05206693,2617.9,2617.6,2.29217]
[1724294864828,0.05206693,2617.9,2617.7,2.29208]
[1724294865025,2.29152,2618.4,2617.8,2.292]
[1724294865286,1.40501283,2618.3,2617.8,2.292]
[1724294865424,1.10161307,2618.3,2617.8,2.292]
[1724294866273,3.39317307,2618.3,2617.8,2.292]
[1724294867011,3.39317307,2618.3,2617.6,2.29212]
[1724294867182,0.56846931,2618.2,2617.6,4.58424]
[1724294867376,0.56846931,2618.2,2617.6,2.29212]
[1724294867587,0.05237988,2618.1,2617.6,2.29212]
[1724294867727,0.05237988,2618.1,2617.4,2.2923]
[1724294867728,2.34415988,2618.1,2617.4,2.29228]
[1724294867924,2.34415988,2618.1,2617.5,2.29221]
[1724294867925,0.44856129,2618.1,2617.5,2.29221]
[1724294868327,2.74034129,2618.1,2617.5,2.29221]
[1724294868523,2.74034129,2618.1,2617.6,2.29217]
[1724294868887,2.74034129,2618.1,2617.2,9.69802039]
[1724294868888,0.05237988,2618.1,2617.8,4.58392]
[1724294869192,2.29152,2618.4,2617.9,0.07638833]
[1724294869327,0.05244366,2618.0,2617.9,2.36828833]
[1724294869560,8.91244407,2618.5,2617.9,2.36828833]
[1724294869778,0.05240462,2618.0,2617.9,0.07638833]
[1724294869982,1.4760831,2618.4,2617.9,0.07638833]
[1724294869983,1.12037841,2618.4,2617.9,2.36829833]
[1724294870184,0.05230793,2618.0,2617.9,2.36829833]
[1724294870347,1.12037841,2618.4,2617.9,2.36829833]
[1724294870546,0.05231992,2618.0,2617.8,2.29194]
[1724294870820,1.00328225,2618.3,2617.6,2.29212]
[1724294870936,0.05260229,2617.9,2617.5,2.29226]
[1724294871133,2.29179,2618.1,2617.5,2.29226]
[1724294871372,0.05253756,2617.8,2617.5,2.29226]
[1724294871551,2.29179,2618.1,2617.5,2.29226]
[1724294872052,0.05261889,2618.0,2617.5,2.29226]
[1724294872886,0.05261889,2618.0,2617.6,2.29215]
[1724294873286,3.29485225,2618.3,2617.6,2.29215]
[1724294873447,0.05253207,2617.9,2617.2,7.41252039]
[1724294873648,2.29188,2618.0,2617.4,2.29229]
[1724294873852,0.05256202,2617.9,2617.5,2.29225]
[1724294874067,4.60375,2618.1,2617.5,2.29225]
[1724294874386,2.29193,2617.9,2617.3,3.0]
[1724294874675,2.29193,2617.9,2617.2,9.70502039]
[1724294874676,0.05251424,2617.8,2617.5,2.29224]
[1724294874988,0.05251424,2617.8,2617.7,2.29208]
[1724294875285,0.05243448,2617.8,2617.7,2.29208]
[1724294875435,2.62117523,2618.2,2617.7,2.29208]
[1724294875641,0.41508639,2618.1,2617.7,2.29208]
[1724294876769,0.05264064,2618.1,2617.8,0.07639536]
[1724294876980,0.05264064,2618.1,2617.9,2.29186]
[1724294877291,4.32826407,2618.5,2618.0,2.29182]
[1724294877435,0.89109541,2618.4,2618.0,2.29182]
[1724294877639,0.89109541,2618.4,2617.8,2.29192]
[1724294878046,3.18256541,2618.4,2617.8,2.29192]
[1724294878246,3.18256541,2618.4,2617.7,7.41252039]
[1724294878247,3.18261541,2618.4,2617.7,7.41252039]
[1724294878449,2.29169,2618.2,2617.7,7.41252039]
[1724294878650,0.229169,2618.1,2617.7,7.41252039]
[1724294879936,2.520909,2618.1,2617.7,7.41252039]
[1724294880142,4.58393,2617.9,2617.7,7.41252039]
[1724294880356,2.29194,2617.9,2617.3,9.70490039]
[1724294880551,2.520939,2618.1,2617.4,2.29229]
[1724294880783,2.7871739,2618.0,2617.4,2.29229]
[1724294881283,2.29192,2617.9,2617.3,9.70490039]
[1724294881584,2.29192,2617.9,2617.3,11.99728039]
[1724294881763,2.29192,2617.9,2617.4,2.29233]
[1724294882171,2.29192,2617.9,2617.3,11.99729039]
[1724294882462,0.35590209,2617.8,2617.4,2.29232]
[1724294882634,2.82273929,2617.9,2617.4,2.29232]
[1724294882837,0.35589802,2617.8,2617.4,2.29232]
[1724294883038,2.82273929,2617.9,2617.4,2.29232]
[1724294883342,0.35590619,2617.8,2617.4,2.29232]
[1724294883663,2.81633735,2617.9,2617.3,9.70490039]
[1724294883856,2.81633735,2617.9,2617.0,7.41252039]
[1724294883857,2.29261,2617.1,2617.0,7.41252039]
[1724294884052,2.2927,2617.0,2616.5,7.41252039]
[1724294884386,2.29305,2616.6,2616.5,7.41252039]
[1724294884606,0.35574646,2616.6,2616.5,7.41252039]
[1724294885441,0.35574646,2616.6,2616.5,9.70565039]
[1724294885648,1.98135255,2617.1,2616.5,10.44690243]
[1724294885901,2.29252,2617.2,2616.5,9.70565039]
[1724294885902,0.40679275,2617.0,2616.5,9.70565039]
[1724294886185,0.35578394,2616.9,2616.5,9.70563039]
[1724294886390,2.29351,2616.1,2615.4,0.37346808]
[1724294886540,2.29387,2615.7,2615.1,0.47854717]
[1724294886742,5.8757,2615.9,2614.7,0.47854717]
[1724294886743,2.29393,2615.6,2614.7,0.47854717]
[1724294886987,2.29393,2615.6,2614.3,0.79445669]
[1724294886988,0.3555993,2615.5,2614.3,0.79445669]
[1724294887287,0.04900221,2615.4,2615.0,2.29444]
[1724294887486,0.40460151,2615.4,2614.8,2.4427]
[1724294887642,0.40460151,2615.4,2615.0,2.29437]
[1724294887643,0.04900221,2615.4,2615.0,2.29437]
[1724294887847,2.3297,2615.9,2615.0,2.29444]
[1724294888043,0.04676883,2615.8,2615.0,2.29444]
[1724294888248,0.04676883,2615.8,2614.4,2.4713]
[1724294888449,2.2939,2615.7,2614.4,4.76626]
[1724294888658,2.29395,2615.6,2614.5,2.29488]
[1724294888991,2.34056189,2615.6,2614.7,2.29471]
[1724294889343,2.34056189,2615.6,2614.5,2.29488]
[1724294889559,0.04661189,2615.6,2614.5,2.29488]
[1724294890197,0.04661189,2615.6,2614.8,2.29462]
[1724294890695,5.29376,2615.8,2614.8,2.29462]
[1724294890846,0.04597145,2615.5,2614.8,2.29462]
[1724294891048,2.3297,2615.9,2614.7,2.4006]
[1724294891247,2.3297,2615.9,2614.8,0.55]
[1724294891489,0.04602143,2615.8,2615.4,2.29409]
[1724294891648,0.04602143,2615.8,2615.6,2.29391]
[1724294891973,0.59936151,2616.3,2615.7,2.84383]
[1724294892173,0.59936151,2616.3,2616.0,2.29357]
[1724294892358,0.04674916,2616.2,2616.0,2.29357]
[1724294892566,3.93,2616.8,2616.1,0.229357]
[1724294893078,0.04654576,2616.7,2616.1,0.229357]
[1724294893949,0.04654576,2616.7,2616.1,2.522837]
[1724294894192,2.2742,2617.1,2616.1,2.522837]
[1724294894493,4.56684,2617.1,2616.2,0.55]
[1724294894730,4.56684,2617.1,2615.1,0.7]
[1724294894731,2.2878,2616.3,2615.1,0.7]
[1724294894909,2.2878,2616.3,2615.0,4.54963]
[1724294895215,2.29349,2616.1,2615.2,2.29427]
[1724294895352,2.29349,2616.1,2615.3,0.229427]
[1724294895554,0.04172138,2616.0,2615.3,0.229427]
[1724294895976,0.43986289,2616.0,2615.3,2.523607]
[1724294897065,0.43986289,2616.0,2615.6,2.29389]
[1724294897275,0.43986289,2616.0,2615.7,0.229389]
[1724294897479,0.43986289,2616.0,2615.3,2.523607]
[1724294897685,0.39814151,2616.0,2615.3,2.523607]
[1724294898104,0.04167796,2615.9,2615.3,0.229427]
[1724294898282,0.04167796,2615.9,2615.3,2.29411]
[1724294898477,0.04167796,2615.9,2615.3,4.58822]
[1724294899284,0.04167796,2615.9,2615.4,2.29406]
[1724294899703,0.04167796,2615.9,2615.3,2.29411]
[1724294900208,0.04167796,2615.9,2615.4,2.2941]
[1724294900509,0.04167796,2615.9,2615.5,0.22941]
[1724294902285,0.04167796,2615.9,2615.5,2.52341]
[1724294903811,0.04167796,2615.9,2615.6,2.29392]
[1724294904172,0.04167796,2615.9,2615.4,2.29409]
[1724294904400,2.39537796,2615.9,2615.2,6.99548071]
[1724294904610,2.57317195,2615.8,2615.2,6.99548071]
[1724294904874,0.04159582,2615.7,2615.2,6.99548071]
[1724294906085,2.33544582,2615.7,2615.2,6.99548071]
[1724294906287,2.33544582,2615.7,2614.8,6.99548071]
[1724294906288,2.29416,2615.4,2614.8,6.99548071]
[1724294906587,2.4063,2615.6,2614.2,9.29059071]
[1724294906588,2.29446,2615.0,2614.2,9.29059071]
[1724294906787,2.4063,2615.2,2614.2,9.29059071]
[1724294906788,2.29461,2614.9,2614.2,9.29059071]
[1724294907103,2.33437965,2614.9,2614.2,9.29059071]
[1724294907509,2.33437965,2614.9,2614.2,6.99548071]
[1724294907510,2.29463,2614.8,2614.2,6.99548071]
[1724294908019,2.33437965,2614.9,2614.2,9.29060071]
[1724294908217,2.29461,2614.9,2614.2,9.29060071]
[1724294908379,0.03950598,2614.8,2614.2,10.4618517]
[1724294910013,0.03950598,2614.8,2614.2,8.1667317]
[1724294910215,0.03950598,2614.8,2614.5,2.29485]
[1724294910419,2.4063,2615.2,2614.5,2.29485]
[1724294910744,3.798773,2615.2,2614.6,2.29479]
[1724294910892,0.03768533,2615.1,2614.6,2.29479]
[1724294911313,0.43583595,2615.1,2614.6,2.29479]
[1724294911531,0.43583595,2615.1,2614.4,2.29493]
[1724294912096,2.73020595,2615.1,2614.4,2.29493]
[1724294912296,0.6528979,2615.0,2614.4,2.29493]
[1724294912497,0.03771148,2614.9,2614.4,2.29493]
[1724294913007,2.69252062,2615.1,2614.4,2.29493]
[1724294913209,0.0375405,2614.8,2614.4,2.29493]
[1724294913409,2.69252062,2615.1,2614.4,2.29493]
[1724294913605,0.03772844,2614.7,2614.4,2.29493]
[1724294913810,2.69252062,2615.1,2614.4,2.29497]
[1724294914032,2.69252062,2615.1,2614.5,2.29489]
[1724294914339,0.03792313,2615.0,2614.5,2.29489]
[1724294915931,0.03792313,2615.0,2614.9,2.29454]
[1724294916133,0.03792313,2615.0,2614.9,2.753451]
[1724294916686,0.03792313,2615.0,2614.0,0.1266092]
[1724294916687,2.3071,2614.1,2614.0,0.1266092]
[1724294916969,0.03671485,2614.1,2614.0,0.1266092]
[1724294917161,0.03671485,2614.1,2614.0,0.20308701]
[1724294917305,2.3071,2614.9,2614.0,0.1266092]
[1724294917505,0.03728367,2614.8,2614.3,2.29506]
[1724294917932,2.6923428,2615.2,2614.3,2.4207]
[1724294918148,0.03563324,2614.7,2614.5,2.29489]
[1724294918462,0.3980628,2615.2,2614.6,0.07648229]
[1724294918677,0.3980628,2615.2,2614.6,2.37128229]
[1724294919145,0.3980628,2615.2,2614.6,0.07648229]
[1724294919337,0.3980628,2615.2,2614.5,2.29489]
[1724294919702,0.3980628,2615.2,2614.6,2.37128225]
[1724294919942,0.3980628,2615.2,2614.6,2.2948]
[1724294920522,0.3980628,2615.2,2614.7,2.29471]
[1724294920707,0.3980628,2615.2,2614.8,0.229471]
[1724294922021,0.3980628,2615.2,2614.8,2.524081]
[1724294922361,0.3980628,2615.2,2615.1,2.29436]
[1724294922532,4.55108,2616.0,2614.9,3.0284]
[1724294922533,2.29377,2615.8,2614.9,3.0284]
[1724294922712,0.39790805,2615.7,2614.9,5.32294]
[1724294923033,0.39790805,2615.7,2614.8,0.229471]
[1724294923034,2.69178805,2615.7,2615.0,0.5552411]
[1724294923205,2.69178805,2615.7,2614.8,0.229471]
[1724294923407,2.29404,2615.5,2614.8,0.229471]
[1724294924335,2.29396,2615.6,2614.8,0.229471]
[1724294924506,2.79252181,2615.6,2614.8,0.229471]
[1724294924711,2.79252181,2615.6,2614.7,3.0]
[1724294924712,2.29419,2615.3,2614.7,3.0]
[1724294924924,2.29461,2614.9,2614.1,2.29523]
[1724294926519,2.29437,2615.1,2614.2,2.29514]
[1724294926711,2.29446,2615.0,2614.3,0.229514]
[1724294927017,2.29446,2615.0,2614.3,3.229514]
[1724294927433,2.29422,2615.3,2614.4,2.29497]
[1724294927434,2.29432,2615.2,2614.4,2.29497]
[1724294927638,2.29429,2615.2,2614.3,3.0]
[1724294927838,2.29429,2615.2,2614.1,2.29521]
[1724294927839,0.229432,2615.1,2614.1,5.29521]
[1724294928069,2.523802,2615.1,2614.2,2.29511]
[1724294928251,2.523802,2615.1,2614.2,5.29511]
[1724294928452,2.29448,2615.0,2614.2,5.29511]
[1724294928773,2.3229,2614.9,2614.0,0.1266092]
[1724294929073,5.8769,2614.9,2614.0,0.1266092]
[1724294929234,3.554,2614.6,2614.0,0.1266092]
[1724294929429,2.29499,2614.4,2614.0,0.1266092]
[1724294929673,2.29517,2614.2,2614.0,0.1266092]
[1724294929840,2.29499,2614.4,2614.0,0.1266092]
[1724294930280,2.3229,2613.9,2612.2,0.79375833]
[1724294930487,2.3229,2613.9,2611.8,0.79375833]
[1724294930488,3.554,2612.5,2611.8,0.79375833]
[1724294930666,3.554,2612.5,2611.4,2.4241592]
[1724294930667,2.29691,2612.2,2611.4,2.4241592]
[1724294930840,2.29691,2612.2,2610.6,4.74463749]
[1724294930841,0.05,2611.5,2610.4,0.02]
[1724294931045,0.59269,2611.5,2610.4,0.02]
[1724294931268,2.29762,2611.4,2610.4,2.31845]
[1724294931453,2.29762,2611.4,2610.6,2.29826]
[1724294931658,2.3229,2611.6,2610.6,2.29829]
[1724294931858,2.3229,2611.6,2610.8,2.29811]
[1724294932168,2.3229,2611.6,2610.8,2.29806]
[1724294932367,3.93,2612.4,2610.8,5.85211]
[1724294932539,3.93,2612.4,2610.9,2.68245402]
[1724294932742,0.62529,2612.3,2611.0,0.7431454]
[1724294933044,0.62529,2612.3,2611.2,2.29775]
[1724294933396,0.62529,2612.3,2610.8,3.0]
[1724294933709,0.62529,2612.3,2611.4,2.29761]
[1724294933840,2.29738,2611.7,2610.8,2.29814]
[1724294934045,2.29711,2612.0,2610.7,0.229929]
[1724294934341,3.457026,2612.2,2610.9,2.29798]
[1724294934541,2.29701,2612.1,2610.9,2.29798]
[1724294934781,2.29718,2611.9,2610.5,0.001]
[1724294935089,1.160116,2612.2,2610.5,2.29933]
[1724294935090,2.3229,2611.6,2610.5,2.29933]
[1724294935447,4.62042,2611.6,2610.6,2.2983]
[1724294935649,2.29754,2611.5,2610.7,2.29822]
[1724294935845,2.3229,2611.6,2610.8,2.29814]
[1724294936076,0.39840967,2611.9,2610.5,6.99648071]
[1724294936272,2.315,2612.1,2610.9,2.29797]
[1724294936648,2.315,2612.1,2611.5,2.29744]
[1724294936851,2.315,2612.1,2611.6,2.29742]
[1724294937044,1.160116,2612.2,2611.7,2.29731]
[1724294937250,3.93,2612.4,2611.5,2.29749]
[1724294937581,3.93,2612.4,2611.3,2.2977]
[1724294937582,4.32801446,2612.4,2611.3,2.2977]
[1724294937754,3.93,2612.4,2611.9,2.29716]
[1724294937956,0.79116644,2612.3,2611.9,2.29716]
[1724294938156,0.79116644,2612.3,2611.0,3.0]
[1724294938383,0.39816644,2612.3,2612.1,2.29698]
[1724294938543,0.39816644,2612.3,2611.5,2.29749]
[1724294938544,0.39816644,2612.3,2612.2,4.59382]
[1724294938750,0.39816644,2612.3,2612.2,2.29691]
[1724294938955,3.93,2612.8,2611.6,3.0]
[1724294939167,2.29653,2612.7,2611.9,2.29715]
[1724294939368,0.39807149,2612.5,2612.0,2.29708]
[1724294939566,0.39807149,2612.5,2611.8,2.29719]
[1724294939778,2.69473149,2612.5,2611.7,5.29735]
[1724294940007,0.33173845,2612.4,2611.4,3.0]
[1724294940217,0.39807149,2612.5,2612.1,2.29698]
[1724294940423,0.39807149,2612.5,2611.2,3.0]
[1724294940424,4.66796,2612.4,2611.2,3.0]
[1724294940564,2.3712,2612.4,2611.1,2.29783]
[1724294940925,2.3712,2612.4,2611.7,2.29733]
[1724294941206,2.3712,2612.4,2611.7,2.29728]
[1724294941370,2.3712,2612.4,2611.9,2.29716]
[1724294941559,2.2969,2612.3,2610.8,0.31043481]
[1724294941758,2.3712,2612.4,2611.1,2.29787]
[1724294942102,2.3712,2612.4,2610.7,2.4027]
[1724294942103,2.29691,2612.2,2611.2,2.29777]
[1724294942394,2.29698,2612.2,2611.4,2.29754]
[1724294942600,0.27692715,2612.3,2610.5,2.29936]
[1724294942601,2.29762,2611.4,2610.5,0.001]
[1724294942820,4.749,2611.8,2610.5,0.001]
[1724294942821,2.356,2611.2,2610.5,0.001]
[1724294943331,2.29789,2611.1,2610.5,0.001]
[1724294943612,0.695161,2611.1,2610.5,0.001]
[1724294943754,2.356,2611.2,2610.5,0.001]
[1724294943957,3.0,2611.5,2610.5,0.001]
[1724294944664,3.0,2611.5,2610.8,2.29807]
[1724294945086,5.29754,2611.5,2610.7,2.29823]
[1724294945257,2.29782,2611.2,2610.5,0.001]
[1724294945474,3.0,2611.3,2610.5,0.001]
[1724294945658,4.74466,2610.8,2610.5,0.001]
[1724294945860,2.29811,2610.9,2610.5,0.001]
[1724294946081,6.22806,2610.9,2610.5,0.001]
[1724294946342,2.29832,2610.6,2610.5,0.001]
[1724294946642,14.03786,2610.6,2610.5,0.001]
[1724294946836,14.03786,2610.6,2610.0,0.02]
[1724294946837,4.59752,2610.1,2610.0,0.02]
[1724294947137,2.29964,2609.1,2608.8,0.1266092]
[1724294947442,4.69363,2609.0,2608.8,0.1266092]
[1724294947617,5.3939,2609.0,2608.8,0.1266092]
[1724294947797,9.99336,2609.0,2608.8,0.1266092]
[1724294948139,7.69363,2609.0,2608.8,0.1266092]
[1724294948635,12.84309,2609.0,2608.8,0.1266092]
[1724294948850,6.89943,2608.9,2608.8,0.1266092]
[1724294948980,0.9778,2608.3,2606.9,4.69872]
[1724294949348,6.12967,2609.1,2606.9,4.69872]
[1724294949349,3.83,2609.1,2607.6,4.749]
[1724294949639,3.83,2609.1,2608.0,7.2462]
[1724294949842,3.83,2609.1,2608.8,2.29988]
[1724294950113,3.83,2609.1,2608.1,0.72462]
[1724294950256,0.9778,2609.8,2608.4,4.749]
[1724294950458,0.9778,2609.8,2608.3,2.30027]
[1724294950459,3.88,2609.9,2609.2,2.29954]
[1724294950665,3.88,2609.9,2608.9,2.29976]
[1724294950959,4.54785911,2610.4,2609.0,2.77921952]
[1724294950960,0.39785911,2610.4,2609.0,2.77921952]
[1724294951166,2.29823,2610.7,2609.8,2.29902]
[1724294951364,6.1355,2610.8,2609.0,2.702576]
[1724294951365,2.29894,2609.9,2609.0,0.229976]
[1724294951533,2.29894,2609.9,2608.6,3.0]
[1724294951534,4.15,2610.4,2609.2,2.29952]
[1724294951721,4.15,2610.4,2608.9,2.29981]
[1724294951928,2.29879,2610.1,2608.8,2.2999]
[1724294952253,2.29945,2609.4,2607.9,7.3564]
[1724294952427,3.88,2609.6,2608.4,2.30025]
[1724294952767,3.88,2609.6,2607.3,2.4544]
[1724294952950,2.30025,2608.5,2607.7,2.30087]
[1724294953136,2.30026,2608.4,2607.4,2.54655]
[1724294953465,2.29938,2609.4,2607.6,2.30096]
[1724294953466,2.30008,2608.6,2607.6,2.30096]
[1724294953765,2.29993,2608.8,2607.7,2.530956]
[1724294953972,2.29956,2609.2,2608.2,2.30043]
[1724294954175,4.284118,2609.3,2608.5,2.30009]
[1724294954347,4.284118,2609.3,2607.8,3.0]
[1724294954348,0.55,2609.2,2608.0,2.30061]
[1724294954554,2.29988,2608.9,2608.0,2.830671]
[1724294954750,2.29988,2608.9,2606.8,4.902]
[1724294954751,2.30053,2608.1,2607.2,2.30131]
[1724294954969,2.3006,2608.1,2607.2,2.30131]
[1724294955535,3.0,2608.2,2606.8,2.30164]
[1724294955865,0.3,2608.1,2607.1,2.3014]
[1724294956049,6.45026,2608.4,2607.3,2.30118]
[1724294956050,6.45031,2608.4,2607.3,2.30118]
[1724294956249,4.15,2608.4,2607.4,2.30108]
[1724294956978,4.15,2608.4,2607.7,2.30087]
[1724294957181,4.15,2608.4,2607.5,2.30104]
[1724294957355,4.15,2608.4,2607.6,2.30094]
[1724294957551,3.88,2608.8,2607.7,2.761028]
[1724294957779,3.88,2608.8,2608.6,2.30007]
[1724294957942,3.88,2608.8,2607.8,0.55]
[1724294958144,3.88,2608.8,2608.7,2.29999]
[1724294959076,3.88,2608.8,2608.5,2.30016]
[1724294959739,3.88,2608.8,2608.6,2.30006]
[1724294959944,3.88,2608.8,2608.7,2.29999]
[1724294960140,3.88,2608.8,2608.3,2.30028]
[1724294960370,0.39812562,2609.1,2608.4,2.30019]
[1724294960748,2.29976,2609.0,2608.1,5.60051]
[1724294960951,2.30033,2608.4,2607.3,2.3012]
[1724294961308,2.30033,2608.4,2607.5,2.30099]
[1724294961720,4.6006,2608.4,2607.5,2.30101]
[1724294961917,0.46006,2608.3,2607.5,2.30101]
[1724294962059,2.3,2608.7,2607.7,2.30084]
[1724294962258,2.29999,2608.7,2608.0,2.30061]
[1724294962456,2.3,2608.7,2607.8,2.30072]
[1724294962695,0.459995,2608.6,2608.0,2.3006]
[1724294962895,2.29992,2608.8,2608.0,2.3006]
[1724294963077,2.30009,2608.6,2607.8,2.30075]
[1724294963560,2.2683,2609.0,2607.8,2.30075]
[1724294963561,2.29992,2608.8,2607.8,2.30075]
[1724294963822,2.30008,2608.6,2607.8,2.30075]
[1724294964111,2.30029,2608.4,2607.7,2.30086]
[1724294964459,2.30008,2608.6,2607.8,2.30078]
[1724294964660,2.30055,2608.1,2607.1,2.30139]
[1724294964861,6.3531,2608.5,2606.5,2.3566]
[1724294964862,2.30111,2607.5,2606.5,2.3566]
[1724294965065,2.30089,2607.7,2606.5,2.3566]
[1724294965309,2.30089,2607.7,2606.9,2.30151]
[1724294965476,2.30112,2607.5,2606.7,2.3017]
[1724294965673,2.30112,2607.5,2606.8,2.30163]
[1724294965918,2.4731,2607.7,2606.9,2.30158]
[1724294966062,2.4731,2608.2,2607.4,2.30113]
[1724294966588,2.30058,2608.1,2606.5,2.3566]
[1724294966782,2.30063,2608.0,2607.2,2.30126]
[1724294967090,0.477368,2608.0,2607.2,2.30125]
[1724294967402,0.477368,2608.0,2607.3,2.30114]
[1724294967570,0.477368,2608.0,2607.4,2.30107]
[1724294967771,2.4731,2608.2,2607.6,2.30095]
[1724294967973,4.15,2608.4,2607.6,2.30095]
[1724294968191,4.15,2608.4,2607.8,2.30077]
[1724294968362,2.3004,2608.3,2607.4,2.30107]
[1724294968563,4.15,2608.4,2607.7,2.30084]
[1724294968884,0.803,2608.3,2607.8,2.30075]
[1724294969107,0.803,2608.3,2607.7,2.30084]
[1724294969411,0.803,2608.3,2607.8,2.30077]
[1724294969612,0.803,2608.3,2607.9,2.30069]
[1724294969816,0.39808431,2608.2,2607.9,2.30069]
[1724294970015,0.39808431,2608.2,2607.8,2.3007]
[1724294970164,0.93319274,2608.2,2607.8,2.3007]
[1724294970563,0.93319274,2608.2,2607.6,2.30096]
[1724294970564,0.93319274,2608.2,2607.6,4.60186]
[1724294970881,0.93319274,2608.2,2607.6,2.30095]
[1724294971060,0.93319274,2608.2,2607.4,2.30111]
[1724294971061,3.23363274,2608.2,2607.4,4.60218]
[1724294971258,0.40365527,2608.1,2607.4,4.60218]
[1724294971533,0.40365527,2608.1,2607.4,2.30107]
[1724294971682,0.40365527,2608.1,2607.5,2.30104]
[1724294971864,2.70418527,2608.1,2607.4,4.60214]
[1724294972222,0.40365527,2608.1,2607.8,2.30077]
[1724294972362,0.93319274,2608.2,2607.8,2.30077]
[1724294972571,0.93319274,2608.2,2607.9,2.3007]
[1724294972830,0.93319274,2608.2,2607.6,2.30093]
[1724294973119,2.30056,2608.1,2607.4,2.3011]
[1724294973279,2.62400527,2608.0,2607.3,2.30122]
[1724294974371,0.32337527,2608.0,2607.3,2.30117]
[1724294974915,2.4096,2607.9,2607.3,4.60232]
[1724294975214,2.4096,2607.9,2607.3,2.30115]
[1724294975602,4.71031,2607.9,2607.2,2.30131]
[1724294975784,0.27329753,2607.8,2607.2,2.30131]
[1724294976577,2.4096,2607.9,2607.4,2.30107]
[1724294977036,0.32337527,2608.0,2607.6,2.30089]
[1724294977178,0.93319274,2608.2,2607.9,2.30068]
[1724294977179,0.39808431,2608.2,2607.9,2.30068]
[1724294977583,0.39808431,2608.2,2608.1,2.30052]
[1724294978121,2.252,2609.1,2608.4,2.30018]
[1724294978450,2.65005935,2609.1,2608.4,4.60037]
[1724294978722,2.65005935,2609.1,2608.0,0.30674562]
[1724294978723,3.88,2609.3,2608.8,2.29985]
[1724294978921,3.88,2609.3,2608.9,2.29981]
[1724294979078,0.388,2609.2,2608.6,2.30001]
[1724294979537,0.388,2609.2,2608.1,4.74711]
[1724294979697,3.88,2609.3,2609.1,2.29962]
[1724294979897,3.88,2609.3,2609.2,2.29955]
[1724294980227,2.2987,2610.2,2609.5,2.29929]
[1724294980438,2.2987,2610.2,2609.3,2.29945]
[1724294980439,2.69671016,2610.1,2609.3,2.29945]
[1724294980654,2.69671016,2610.1,2609.3,4.59884]
[1724294980786,0.49954102,2610.0,2609.4,2.29935]
[1724294981138,0.49954102,2610.0,2609.6,2.2992]